[Event "1000GM Schev-C January 2024"]
[Site "Sunnyvale"]
[Date "2024.01.22"]
[Round "5.1"]
[White "Pulijala, Akshaj"]
[Black "Vasquez Ramirez, Rocio"]
[Result "1-0"]
[ECO "C11"]
[WhiteElo "1597"]
[BlackElo "1999"]
[Annotator "TA"]
[PlyCount "79"]
[EventDate "2024.01.20"]
[EventType "schev"]
[EventCountry "USA"]
[SourceTitle "playchess.com"]
[Source "ChessBase"]
[SourceQuality "1"]
[TimeControl "5400+30"]

{[%evp 9,79,-7,62,60,54,48,56,49,58,48,45,-16,-5,-34,-41,-49,46,43,58,-3,42,-43,0,-8,0,-34,-19,-23,-6,-22,-21,-14,43,0,11,15,51,0,246,158,318,320,310,333,292,203,197,170,308,329,312,199,446,457,512,486,1235,1139,993,322,421,287,658,439,1055,1025,1020,985,29992,29993,29997,29998]} 1. d4 {[%emt 0:00:05]} e6 {[%emt 0:00:09]} 2. Nc3 {[%emt 0:00:08]} Nf6 {[%emt 0:01:29]} 3. e4 {[%emt 0:00:10][%cal Be2e4,Be4e5][%mdl 32]} d5 {[%emt 0:00:12]} 4. Qd3 {[%emt 0:00:10]} a6 {[%emt 0:01:15]} 5. Nge2 {[%emt 0:02:57]} Bb4 {[%emt 0:02:12]} (5... dxe4 $11 6. Nxe4 Nc6) 6. e5 $14 {[%emt 0:00:57]} Nfd7 {[%emt 0:00:49]} 7. Qg3 {[%emt 0:00:24]} g6 {[%emt 0:01:14]} 8. Bh6 {[%emt 0:04:11] White is slightly better.} Be7 {[%emt 0:05:15]} 9. h4 {[%emt 0:06:12]} c5 {[%emt 0:00:23]} 10. f4 {[%emt 0:03:48]} (10. O-O-O $14) 10... Nc6 {[%emt 0:00:41]} 11. O-O-O {[%emt 0:03:27]} b5 {[%emt 0:00:37]} 12. f5 {[%emt 0:03:05]} b4 {[%emt 0:10:12]} (12... gxf5 $15 13. Qg7 Rf8) 13. fxe6 {[%emt 0:04:47]} (13. Na4 {keeps more tension.} gxf5 14. Qg7 Rf8 15. Nxc5 Nxc5 16. dxc5 Qc7 17. Qxh7 Qxe5 18. Bxf8 Kxf8 19. Kb1) 13... fxe6 {[%emt 0:00:27]} 14. Nb1 {[%emt 0:04:12]} (14. Na4 $14) 14... Qb6 {[%emt 0:10:57]} (14... Qa5 {seems wilder.} 15. Nf4 Nxd4 16. Rxd4 cxd4 17. Nxe6 Nc5) 15. dxc5 {[%emt 0:02:59]} (15. h5 $14 Rg8 16. hxg6 hxg6 (16... Nxd4 $2 17. gxh7 Rxg3 18. h8=Q+ Nf8 19. Nxg3 $18) (16... Rxg6 17. Qh3 $16) 17. Be3) 15... Nxc5 {[%emt 0:00:10] [#] ...Ne4 would now be deadly.} 16. Nd2 {[%emt 0:05:45]} Bd7 {[%emt 0:04:39]} 17. Be3 {[%emt 0:03:14]} a5 {[%emt 0:08:38]} 18. h5 {[%emt 0:03:52] [#]} g5 {[%emt 0:00:13] ...h6 is the strong threat.} 19. Nd4 {[%emt 0:01:16]} (19. Bxg5 $2 Rg8 20. Rh4 (20. Nf3 $2 Ne4 $19) 20... Bxg5 $19 (20... Rxg5 $2 21. Rg4 $19)) 19... h6 {[%emt 0:06:29]} 20. Be2 {[%emt 0:03:08]} O-O-O {[%emt 0:04:44]} (20... O-O $11) 21. Bg4 {[%emt 0:02:31][%cal Od4e6]} Nxd4 {[%emt 0:06:09]} 22. Bxd4 {[%emt 0:00:05]} a4 {[%emt 0:00:09]} 23. c4 {[%emt 0:03:15]} (23. Kb1 $14) 23... Qb7 $2 {[%emt 0:21:25]} (23... bxc3 $1 $11 24. Qxc3 Rhf8) 24. Kb1 {[%emt 0:04:52] And now Qe3 would win.} Rhf8 $2 {[%emt 0:05:18] Black cannot hold the game after this.} (24... Bc6 $16) 25. Qe3 $18 {[%emt 0:02:07]} Ne4 {[%emt 0:02:48]} 26. Nxe4 {[%emt 0:07:10]} dxe4 {[%emt 0:00:03]} 27. g3 {[%emt 0:01:42] Prevents Rf4} b3 {[%emt 0:02:47]} 28. a3 {[%emt 0:01:13]} Qc6 {[%emt 0:01:26]} (28... Kb8 $142) 29. Bb6 {[%emt 0:01:48]} Rde8 {[%emt 0:00:20]} 30. Rd2 {[%emt 0:01:58][%cal Bd1d2,Bd2e2,Be2e3][%mdl 32] Hoping for Rhd1.} Kb7 $2 {[%emt 0:01:24]} (30... Kb8 {keeps fighting.} 31. c5 Qb7) 31. c5 {[%emt 0:02:24] Strongly threatening Rhd1.} (31. Rhd1 Bc8 $18) 31... Rf7 {[%emt 0:00:53]} 32. Rhd1 {[%emt 0:00:45]} Bc8 {[%emt 0:00:02]} (32... Bf8 $142 33. Bh3 Rc8) 33. Qc3 {[%emt 0:01:53] White threatens Qa5 and mate.} Kb8 {[%emt 0:02:42]} 34. Qb4 $2 {[%emt 0:03:59]} (34. Qa5 {[%csl Gb6][%cal Ra5a7]} Bf8 35. Ka1) 34... e3 {[%emt 0:00:34]} 35. Re2 {[%emt 0:01:40][%cal Og4h3] Threatens to win with Bh3!} Rf2 $2 {[%emt 0:00:39]} (35... Ref8 36. Rxe3 Ba6) 36. Rxe3 {[%emt 0:00:34]} Ref8 {[%emt 0:00:07]} (36... Ba6 $142 37. Bxe6 g4 (37... Qxe6 $2 {loses.} 38. Qxa4 Qc4 39. Qxe8+ $18) 38. Bc7+ (38. Qxg4 Bxc5 39. Bxc5 Qxc5 $16) (38. Bxg4 Rg8 $18) 38... Ka7) 37. Bd8+ {[%emt 0:02:05][%cal Bb6d8,Bd8e7,Be7d6][%mdl 32]} Bb7 {[%emt 0:00:29]} 38. Bxe7 {[%emt 0:00:30]} Qg2 {[%emt 0:00:28]} 39. Bd6+ {[%emt 0:01:37]} (39. Qxa4 $2 {leads to mate.} Rxb2+ 40. Ka1 Ra2+ 41. Kb1 Qc2#) 39... Ka7 {[%emt 0:00:01]} 40. Qb6+ {[%emt 0:00:36] Weighted Error Value: White=0.56/Black=0.86.  Loses game:     	---       	Black=1      Mistake:       	White=4     	Black=8      Inaccurate:     	White=7     	Black=3      OK:         	White=7     	Black=6      Best:        	White=2     	---        Brilliant:      	---       	Black=1} 1-0

[Event "1000GM Schev-C January 2024"]
[Site "Sunnyvale"]
[Date "2024.01.22"]
[Round "5.2"]
[White "Maass Garza R, Gustavo"]
[Black "Qi, Jenny"]
[Result "1/2-1/2"]
[ECO "A46"]
[WhiteElo "2025"]
[BlackElo "1605"]
[Annotator "TA"]
[PlyCount "55"]
[EventDate "2024.01.20"]
[EventType "schev"]
[EventCountry "USA"]
[SourceTitle "playchess.com"]
[Source "ChessBase"]
[SourceQuality "1"]
[TimeControl "5400+30"]

{[%evp 9,55,6,10,23,13,-24,-10,-12,0,6,14,-3,27,28,21,8,24,17,37,0,0,0,51,51,41,22,48,54,92,0,15,14,10,15,35,23,10,3,5,0,0,-7,-1,-8,-3,-39,-44,-48]} 1. d4 {[%emt 0:00:03]} Nf6 {[%emt 0:01:03]} 2. Nf3 {[%emt 0:00:03]} e6 {[%emt 0:00:56]} 3. g3 {[%emt 0:00:17]} d5 {[%emt 0:00:34]} 4. Bg2 {[%emt 0:00:05]} b5 {[%emt 0:00:55]} 5. O-O {[%emt 0:00:44]} c5 {[%emt 0:01:36]} 6. a4 {[%emt 0:00:39]} b4 {[%emt 0:00:48]} 7. c3 {[%emt 0:01:17]} a5 {[%emt 0:02:29]} 8. cxb4 {[%emt 0:00:50] The position is equal.} cxb4 {[%emt 0:01:44]} 9. Bf4 {[%emt 0:01:17]} Be7 {[%emt 0:01:23]} 10. Ne5 {[%emt 0:01:21]} O-O {[%emt 0:05:01]} 11. Nd2 {[%emt 0:00:45]} Bb7 {[%emt 0:01:37]} 12. Rc1 {[%emt 0:01:40] Dodges Nc6} Nh5 {[%emt 0:12:12]} 13. Be3 {[%emt 0:01:06]} Nd7 {[%emt 0:07:49]} 14. Nc6 {[%emt 0:04:28]} Bxc6 {[%emt 0:01:10]} 15. Rxc6 {[%emt 0:00:04]} g6 {[%emt 0:03:38]} (15... Rc8 $11 16. Rxc8 Qxc8) 16. Bh6 {[%emt 0:01:48]} Ng7 {[%emt 0:02:23]} 17. e4 {[%emt 0:00:49]} dxe4 {[%emt 0:02:50]} 18. Nxe4 {[%emt 0:00:42]} Rc8 {[%emt 0:04:51]} 19. Qc2 {[%emt 0:02:46] White has more active pieces.} (19. Rxc8 $16 Qxc8 20. d5) 19... Rxc6 {[%emt 0:05:50]} 20. Qxc6 {[%emt 0:00:04]} Nf6 {[%emt 0:01:58]} 21. Rd1 {[%emt 0:03:20]} Qc8 {[%emt 0:11:00]} 22. Nxf6+ {[%emt 0:14:30]} Bxf6 {[%emt 0:00:14]} 23. Qf3 {[%emt 0:01:26]} Be7 {[%emt 0:05:16]} 24. Rc1 {[%emt 0:01:52]} Qd7 {[%emt 0:01:37][%csl LRa4,LRd4]} 25. Qf4 $132 {[%emt 0:04:36][%mdl 2048] Hoping for Qe5. White is not holding back} Rc8 $1 {[%emt 0:10:38]} 26. Rxc8+ {[%emt 0:03:39]} Qxc8 {[%emt 0:00:07]} 27. Bxg7 {[%emt 0:04:10]} Kxg7 {[%emt 0:00:12]} 28. d5 {[%emt 0:50:09] Weighted Error Value: White=0.16 (very precise) /Black=0.13 (very precise) .  Mistake:       	White=1     	Black=1      Inaccurate:     	White=3     	Black=3      OK:         	White=7     	Black=7      Strong:       	---       	Black=1} 1/2-1/2

[Event "1000GM Schev-C January 2024"]
[Site "Sunnyvale"]
[Date "2024.01.22"]
[Round "5.3"]
[White "Palmero Martinez, Rachel"]
[Black "Yuan, Serena"]
[Result "1/2-1/2"]
[ECO "B33"]
[WhiteElo "2018"]
[BlackElo "1771"]
[Annotator "TA"]
[PlyCount "104"]
[EventDate "2024.01.20"]
[EventType "schev"]
[EventCountry "USA"]
[SourceTitle "playchess.com"]
[Source "ChessBase"]
[SourceQuality "1"]
[TimeControl "5400+30"]

{[%evp 20,104,21,5,4,4,24,0,0,-6,20,13,19,6,13,19,38,33,34,-31,16,5,19,30,70,-4,-4,-12,-4,-39,-22,-39,0,-73,0,-19,0,0,0,5,25,6,43,38,74,84,86,88,91,104,137,97,110,93,101,93,104,43,58,45,46,47,67,67,81,30,47,33,93,33,31,31,39,33,96,38,72,0,0,0,68,0,0,0,75,0,0]} 1. e4 {[%emt 0:01:45]} c5 {[%emt 0:01:05]} 2. Nf3 {[%emt 0:00:57][%cal Bg1f3,Bf3d4,Bd4b5,Bb5a3,Ba3c2][%mdl 32]} Nc6 {[%emt 0:00:06]} 3. d4 {[%emt 0:00:04]} cxd4 {[%emt 0:00:06]} 4. Nxd4 {[%emt 0:00:05]} Nf6 {[%emt 0:00:10]} 5. Nc3 {[%emt 0:00:04]} e5 {[%emt 0:00:06]} 6. Ndb5 {[%emt 0:00:06]} d6 {[%emt 0:00:06]} 7. Bg5 {[%emt 0:00:04]} a6 {[%emt 0:00:08]} 8. Na3 {[%emt 0:00:05]} b5 {[%emt 0:00:05][%cal Bb7b5,Bb5b4][%mdl 32]} 9. Nd5 {[%emt 0:00:03]} Be7 {[%emt 0:00:08]} 10. Bxf6 {[%emt 0:00:05]} Bxf6 {[%emt 0:00:06]} 11. c4 {[%emt 0:00:04]} b4 {[%emt 0:00:07]} 12. Nc2 {[%emt 0:00:04]} O-O {[%emt 0:00:07]} 13. h4 {[%emt 0:00:06]} a5 {[%emt 0:02:14]} 14. g3 {[%emt 0:00:08]} h6 {[%emt 0:10:47]} 15. Bg2 {[%emt 0:00:51]} g6 {[%emt 0:00:57]} 16. Nxf6+ {[%emt 0:01:46]} Qxf6 {[%emt 0:00:19]} 17. Qd2 {[%emt 0:00:03]} h5 {[%emt 0:02:44]} 18. Rd1 {[%emt 0:00:39]} Bg4 {[%emt 0:02:47]} 19. Rc1 {[%emt 0:10:11]} (19. f3 $14 Be6 (19... Bxf3 $2 {loses.} 20. O-O $18) 20. Ne3) 19... Rfd8 {[%emt 0:10:37]} (19... b3 $1 $15 20. axb3 Rfb8) 20. O-O $11 {[%emt 0:00:11]} Qe7 {[%emt 0:04:38]} 21. b3 {[%emt 0:00:59]} Qb7 {[%emt 0:02:10]} 22. Rfe1 {[%emt 0:06:37]} ({White should try} 22. f3 $14 Bc8 23. f4) 22... a4 {[%emt 0:04:08]} 23. Qh6 {[%emt 1:17:03]} Qe7 {[%emt 0:05:00]} 24. Ra1 {[%emt 0:00:00]} Ra7 {[%emt 0:05:53]} 25. Qd2 {[%emt 0:00:00]} Qb7 {[%emt 0:07:38]} 26. Kh2 {[%emt 0:00:00]} (26. Qh6 $11 {keeps the balance.}) 26... Be6 {[%emt 0:05:05]} ({Black should play} 26... Rda8 $17) 27. Bh3 {[%emt 0:00:00]} Bxh3 {[%emt 0:04:16]} 28. Kxh3 {[%emt 0:00:00]} Qb6 {[%emt 0:01:18]} 29. Kg2 {[%emt 0:00:00]} Kg7 {[%emt 0:00:53]} 30. Red1 {[%emt 0:00:00]} Qc5 {[%emt 0:04:00]} 31. Qe1 {[%emt 0:00:00]} Qb6 {[%emt 0:02:57]} 32. Rd5 {[%emt 0:00:00]} Ra5 {[%emt 0:05:04]} 33. Rad1 $1 {[%emt 0:00:00]} axb3 {[%emt 0:04:47]} 34. axb3 {[%emt 0:00:00]} Ne7 {[%emt 0:08:20]} 35. Rxa5 {[%emt 0:00:00]} (35. Qxb4 Nxd5 36. Rxd5 Qxb4 37. Nxb4 Rxd5 38. Nxd5 Kf8 $11) 35... Qxa5 {[%emt 0:00:06]} 36. Qxb4 {[%emt 0:00:00]} Qxb4 {[%emt 0:01:17]} 37. Nxb4 $16 {[%emt 0:00:00][%mdl 4096] Endgame. Strongly threatening c5. KRN-KRN} Rb8 {[%emt 0:00:18]} 38. Nd5 {[%emt 0:00:00]} (38. Na6 $16 Rxb3 39. Rxd6) 38... Nxd5 $14 {[%emt 0:00:33]} 39. Rxd5 {[%emt 0:00:00]} Rxb3 {[%emt 0:01:06]} 40. Rxd6 {[%emt 0:00:00] KR-KR} Rc3 {[%emt 0:00:33]} 41. Rc6 {[%emt 0:00:00]} Kf8 {[%emt 0:01:02] [#]} 42. Rc7 {[%emt 0:00:00]} (42. Rc5 $1 $16) 42... Kg7 $1 $11 {[%emt 0:00:57]} 43. Kf1 {[%emt 0:00:00]} Rc2 {[%emt 0:00:12] [#]} (43... Kf6 $14) 44. c5 {[%emt 0:00:00]} (44. Rc6 $1 $16) 44... Kf6 {[%emt 0:00:57]} 45. Ke1 {[%emt 0:00:00]} Ke6 {[%emt 0:00:42]} 46. c6 {[%emt 0:00:00]} Kf6 {[%emt 0:03:37]} (46... Ra2 $14) 47. Rc8 {[%emt 0:00:00]} (47. Kd1 $16 Rc5 48. Kd2) 47... Ke7 $14 {[%emt 0:01:41]} 48. Kf1 {[%emt 0:00:00]} (48. c7 $16) 48... Kd6 $11 {[%emt 0:01:00]} 49. Rd8+ {[%emt 0:00:00]} Ke7 {[%emt 0:00:38]} (49... Ke6 $1 $11) 50. Rc8 {[%emt 0:00:00]} (50. Rd7+ $14 Ke6 51. Rc7) 50... Kd6 {[%emt 0:00:07]} 51. Rd8+ {[%emt 0:00:00]} Ke7 {[%emt 0:00:11]} (51... Ke6 $11 {remains equal.}) 52. Rc8 {[%emt 0:00:00]} (52. Rd7+ $16 Ke6 53. Rc7) 52... Kd6 {[%emt 0:00:39] Weighted Error Value: White=0.25 (precise) /Black=0.21 (precise) .  Mistake:       	White=10    	Black=6      Inaccurate:     	White=1     	Black=6      OK:         	White=8     	Black=11     Best:        	White=3     	Black=2      Strong:       	White=1     	Black=1} 1/2-1/2

[Event "1000GM Schev-C January 2024"]
[Site "Sunnyvale"]
[Date "2024.01.22"]
[Round "5.4"]
[White "Yang, Maxwell"]
[Black "Winslow, Elliott"]
[Result "0-1"]
[ECO "A61"]
[WhiteElo "1946"]
[BlackElo "1994"]
[Annotator "TA"]
[PlyCount "60"]
[EventDate "2024.01.20"]
[EventType "schev"]
[EventCountry "USA"]
[SourceTitle "playchess.com"]
[Source "ChessBase"]
[SourceQuality "1"]
[TimeControl "5400+30"]

{[%evp 13,59,33,49,54,43,0,16,0,0,-11,-9,-7,15,18,23,-453,-457,-460,-454,-461,-459,-494,-494,-721,-694,-682,-687,-820,-772,-899,-892,-1036,-994,-1375,-1381,-1351,-1352,-2245,-2133,-29991,-29992,-29992,-29993,-29996,-29997,-29998,-29999,-29999]} 1. d4 {[%emt 0:00:03]} Nf6 {[%emt 0:01:47]} 2. c4 {[%emt 0:00:07]} e6 {[%emt 0:00:32]} 3. Nc3 {[%emt 0:00:05]} c5 {[%emt 0:02:29]} 4. d5 {[%emt 0:00:17]} exd5 {[%emt 0:00:07]} 5. cxd5 {[%emt 0:00:04]} d6 {[%emt 0:00:16]} 6. Nf3 {[%emt 0:00:04][%cal Bg1f3,Bf3d2,Bd2c4][%mdl 32]} g6 {[%emt 0:00:08]} 7. Nd2 {[%emt 0:00:10]} Nbd7 {[%emt 0:01:07]} 8. e4 {[%emt 0:00:08]} Bg7 {[%emt 0:00:10]} 9. f3 {[%emt 0:00:51]} O-O {[%emt 0:00:28]} 10. Nc4 {[%emt 0:00:18] The position is equal.} Nb6 {[%emt 0:02:04]} 11. Be3 {[%emt 0:01:01]} Ne8 {[%emt 0:03:07]} 12. Qd2 {[%emt 0:03:11]} Nxc4 {[%emt 0:02:15]} 13. Bxc4 {[%emt 0:00:07]} f5 {[%emt 0:03:26]} 14. exf5 $2 {[%emt 0:02:22][%mdl 8192] White does not recover from this.} (14. O-O $11 {and White has nothing to worry.}) 14... Qh4+ $19 {[%emt 0:00:14]} 15. Bf2 {[%emt 0:02:57]} Qxc4 {[%emt 0:00:08]} 16. fxg6 {[%emt 0:00:07]} hxg6 {[%emt 0:00:25]} 17. O-O-O {[%emt 0:00:09]} b5 {[%emt 1:20:17] [#] And now ...b4 would win.} 18. Kb1 {[%emt 0:03:01]} (18. Qe2 $142) 18... Bf5+ {[%emt 0:00:00]} 19. Ka1 {[%emt 0:00:08]} b4 {[%emt 0:00:00]} 20. Ne2 {[%emt 0:00:51]} b3 {[%emt 0:00:00] Hoping for ...Qa4.} 21. a3 {[%emt 0:01:01]} Nc7 {[%emt 0:00:00]} 22. Nc3 {[%emt 0:02:43]} Rab8 {[%emt 0:00:00] aiming for ...Bxc3.} 23. Qe2 {[%emt 0:01:23]} Qxe2 {[%emt 0:00:00]} 24. Nxe2 {[%emt 0:00:05]} Nb5 {[%emt 0:00:00]} 25. a4 {[%emt 0:00:19] [#]} Rb6 $1 {[%emt 0:00:00] ( -> ...Ra6)} 26. a5 {[%emt 0:00:50]} (26. Rc1 Ra6) 26... Ra6 {[%emt 0:00:00][%cal Ra6a5] Black mates.} 27. Be1 {[%emt 0:00:05]} Re8 {[%emt 0:00:00]} 28. g4 {[%emt 0:00:35]} Rxe2 {[%emt 0:00:00][%csl Ge2][%cal Rg7b2]} 29. gxf5 {[%emt 0:00:06]} Bxb2+ {[%emt 0:00:00]} 30. Kb1 {[%emt 0:00:04]} Na3# {[%emt 0:00:00] Weighted Error Value: White=1.21/Black=0.06 (flawless) .  Loses game:     	White=1     	---        Mistake:       	White=1     	---        Inaccurate:     	White=1     	---        OK:         	White=5     	Black=6      Best:        	---       	Black=1} 0-1

[Event "1000GM Schev-C January 2024"]
[Site "Sunnyvale"]
[Date "2024.01.22"]
[Round "5.5"]
[White "Zhuge, Katherine"]
[Black "Palao, Adriana"]
[Result "1/2-1/2"]
[ECO "C41"]
[WhiteElo "1620"]
[BlackElo "1978"]
[Annotator "RC"]
[PlyCount "136"]
[EventDate "2024.01.20"]
[EventType "schev"]
[EventCountry "USA"]
[SourceTitle "playchess.com"]
[Source "ChessBase"]
[SourceQuality "1"]
[TimeControl "5400+30"]

1. e4 {[%emt 0:00:03]} e5 {[%emt 0:07:41]} 2. Nf3 {[%emt 0:00:07]} d6 {[%emt 0:00:11]} 3. d4 {[%emt 0:00:14]} Nd7 {[%emt 0:00:05]} 4. Nc3 {[%emt 0:00:25]} c6 {[%emt 0:00:04]} 5. Bc4 {[%emt 0:00:17]} Be7 {[%emt 0:00:04]} 6. O-O {[%emt 0:00:28]} Ngf6 {[%emt 0:00:04]} 7. a4 {[%emt 0:02:12]} O-O {[%emt 0:00:06]} 8. b3 {[%emt 0:00:19]} Qc7 {[%emt 0:00:08]} 9. Ba3 {[%emt 0:01:42]} exd4 {[%emt 0:02:23]} 10. Nxd4 {[%emt 0:00:58]} Nc5 {[%emt 0:04:40]} 11. Re1 {[%emt 0:06:36]} Ng4 {[%emt 0:04:15]} 12. Be2 {[%emt 0:04:55]} Nf6 {[%emt 0:07:55]} 13. Bf1 {[%emt 0:02:57]} Bg4 {[%emt 0:05:38]} 14. f3 {[%emt 0:03:14]} Be6 {[%emt 0:03:18]} 15. f4 {[%emt 0:03:35]} Bg4 {[%emt 0:12:14]} 16. Nf3 {[%emt 0:02:56]} Ne6 {[%emt 0:05:46]} 17. h3 {[%emt 0:03:40]} Qb6+ {[%emt 0:06:23]} 18. Kh1 {[%emt 0:02:58]} Nxf4 {[%emt 0:02:46]} 19. hxg4 {[%emt 0:03:36]} Nxg4 {[%emt 0:00:10]} 20. Qd4 {[%emt 0:02:26]} Qxd4 {[%emt 0:05:30]} 21. Nxd4 {[%emt 0:00:07]} Bf6 {[%emt 0:00:04]} 22. Rad1 {[%emt 0:10:35]} Nf2+ {[%emt 0:06:36]} 23. Kg1 {[%emt 0:01:00]} Nxd1 {[%emt 0:00:05]} 24. Rxd1 {[%emt 0:00:08]} Rfd8 {[%emt 0:02:02]} 25. Nce2 {[%emt 0:06:33]} Nxe2+ {[%emt 0:01:47]} 26. Bxe2 {[%emt 0:00:46]} d5 {[%emt 0:00:19]} 27. exd5 {[%emt 0:06:58]} cxd5 {[%emt 0:00:20]} 28. Nf5 {[%emt 0:05:35]} d4 {[%emt 0:12:11]} 29. Be7 {[%emt 0:02:23]} Re8 {[%emt 0:03:52]} 30. Bxf6 {[%emt 0:00:35]} Rxe2 {[%emt 0:00:29]} 31. Bxg7 {[%emt 0:00:32]} Rxc2 {[%emt 0:01:37]} 32. Bxd4 {[%emt 0:02:59]} Rd8 {[%emt 0:02:20]} 33. Re1 {[%emt 0:05:54]} h5 {[%emt 0:03:48]} 34. Bf6 {[%emt 0:09:59]} Rdd2 {[%emt 0:00:58]} 35. Nh4 {[%emt 0:01:18]} Re2 {[%emt 0:01:11]} 36. Rd1 {[%emt 0:01:52]} Red2 {[%emt 0:00:27]} 37. Rxd2 {[%emt 0:00:24]} Rxd2 {[%emt 0:00:02]} 38. b4 {[%emt 0:00:35]} a5 {[%emt 0:01:28]} 39. bxa5 {[%emt 0:01:14]} Rd3 {[%emt 0:00:31]} 40. Kf2 {[%emt 0:00:57]} Rd5 {[%emt 0:00:20]} 41. Bc3 {[%emt 0:00:42]} Rc5 {[%emt 0:00:05]} 42. Be1 {[%emt 0:00:28]} Rc4 {[%emt 0:00:18]} 43. Nf3 {[%emt 0:01:42]} Rxa4 {[%emt 0:00:06]} 44. Nd2 {[%emt 0:01:09]} Rxa5 {[%emt 0:00:10]} 45. Ne4 {[%emt 0:00:29]} Ra2+ {[%emt 0:00:18]} 46. Kf3 {[%emt 0:00:30]} b5 {[%emt 0:00:25]} 47. Nf6+ {[%emt 0:00:27]} Kg7 {[%emt 0:02:10]} 48. Nxh5+ {[%emt 0:00:02]} Kh6 {[%emt 0:00:01]} 49. Nf4 {[%emt 0:00:23]} Ra4 {[%emt 0:00:18]} 50. Nd3 {[%emt 0:00:31]} Ra3 {[%emt 0:00:42]} 51. Ke2 {[%emt 0:00:41]} Kg5 {[%emt 0:00:13]} 52. Bd2+ {[%emt 0:01:20]} Kf5 {[%emt 0:00:04]} 53. g4+ {[%emt 0:00:59]} Ke4 {[%emt 0:01:24]} 54. Nb4 {[%emt 0:00:21]} Rg3 {[%emt 0:00:18]} 55. g5 {[%emt 0:00:21]} Rg2+ {[%emt 0:01:01]} 56. Kd1 {[%emt 0:00:06]} Kd4 {[%emt 0:00:21]} 57. Kc2 {[%emt 0:00:26]} Kc4 {[%emt 0:00:39]} 58. Nc6 {[%emt 0:00:24]} Re2 {[%emt 0:00:31]} 59. Na5+ {[%emt 0:01:09]} Kd5 {[%emt 0:00:28]} 60. Kd1 {[%emt 0:00:32]} Re4 {[%emt 0:00:15]} 61. Kc2 {[%emt 0:00:41]} Ra4 {[%emt 0:00:20]} 62. Kb3 {[%emt 0:00:41]} Rg4 {[%emt 0:00:52]} 63. Nb7 {[%emt 0:00:32]} Ke6 {[%emt 0:00:39]} 64. Nd8+ {[%emt 0:01:15]} Ke7 {[%emt 0:00:02]} 65. Nc6+ {[%emt 0:00:06]} Kd6 {[%emt 0:00:20]} 66. Nd8 {[%emt 0:00:22]} Ke7 {[%emt 0:00:32]} 67. Nc6+ {[%emt 0:00:03]} Kd6 {[%emt 0:00:59]} 68. Nd8 {[%emt 0:00:05]} Kd5 {[%emt 0:01:11]} 1/2-1/2